fUSD/lending_fUSD_20250804
["ID","MTS","AMOUNT","RATE_DAILY","PERIOD"]
[377199074,1754287844608,-410.15,0.00046838,120]
[377199075,1754287844617,-150.0,0.00046839,120]
[377199076,1754287844626,-36497.5833208,0.00046839,3]
[377199077,1754287844636,-400.0,0.00046848,120]
[377199078,1754287844645,-400.0,0.00046848,120]
[377199079,1754287844655,-400.0,0.00046848,120]
[377199080,1754287844664,-400.0,0.00046848,120]
[377199081,1754287844673,-400.0,0.00046848,120]
[377199082,1754287844683,-400.0,0.00046848,120]
[377199083,1754287844692,-400.0,0.00046848,120]
[377199084,1754287844702,-1207.19,0.00046848,120]
[377199085,1754287844712,-846.58,0.00046848,120]
[377199086,1754287844722,-400.0,0.00046848,120]
[377199087,1754287844732,-1485.65,0.00046848,120]
[377199088,1754287844742,-410.84,0.00046848,120]
[377199089,1754287844752,-3364.25,0.00046848,120]
[377199090,1754287844762,-1415.86,0.00046848,120]
[377199091,1754287844771,-400.0,0.00046848,120]
[377199092,1754287844780,-730.41,0.00046848,120]
[377199093,1754287844790,-1092.46,0.00046848,120]
[377199094,1754287844799,-400.0,0.00046848,120]
[377199095,1754287844808,-511.35,0.00046848,120]
[377199096,1754287844818,-482.23604513,0.00046848,120]
[377199097,1754287844827,-1215.1,0.00046848,120]
[377199098,1754287844837,-400.0,0.00046848,120]
[377199099,1754287844846,-867.51,0.00046848,120]
[377199100,1754287844855,-1648.43,0.00046848,120]
[377199101,1754287844865,-400.0,0.00046848,120]
[377199102,1754287844875,-400.0,0.00046848,120]
[377199103,1754287844887,-400.0,0.00046848,120]
[377199104,1754287844896,-503.62537467,0.00046848,120]
[377199105,1754287844905,-482.70006476,0.00046848,120]
[377199106,1754287844915,-400.0,0.00046848,120]
[377199107,1754287844924,-2916.41,0.00046848,14]
[377199108,1754287844934,-400.0,0.00046848,120]
[377199109,1754287844943,-400.0,0.00046848,120]
[377199110,1754287844952,-429.7,0.00046848,120]
[377199111,1754287844962,-690.87,0.00046848,120]
[377199112,1754287844972,-625.43,0.00046848,120]
[377199113,1754287844981,-400.0,0.00046848,120]
[377199114,1754287844991,-400.0,0.00046848,120]
[377199115,1754287845000,-4771.7,0.00046848,120]
[377199116,1754287845010,-400.0,0.00046848,120]
[377199117,1754287845019,-400.0,0.00046848,120]
[377199118,1754287845029,-400.53,0.00046848,120]
[377199119,1754287845038,-2890.73,0.00046848,120]
[377199120,1754287845047,-1069.49,0.00046849,120]
[377199121,1754287845057,-2849.42,0.00046849,120]
[377199122,1754287845066,-400.0,0.00046849,120]
[377199123,1754287845076,-400.0,0.00046849,120]
[377199124,1754287845085,-1093.2,0.00046849,120]
[377199125,1754287845096,-919.63,0.00046849,120]
[377199126,1754287845106,-400.0,0.00046849,120]
[377199127,1754287845118,-400.0,0.00046849,120]
[377199128,1754287845129,-400.0,0.00046849,120]
[377199129,1754287845138,-400.0,0.00046849,120]
[377199130,1754287845148,-400.0,0.00046849,120]
[377199131,1754287845159,-1007.55,0.00046849,120]
[377199132,1754287845168,-1188.93,0.00046849,120]
[377199133,1754287845180,-400.0,0.00046849,120]
[377199134,1754287845190,-388.34556768,0.00046849,120]
[377199135,1754287845199,-400.0,0.00046849,120]
[377199136,1754287845210,-400.0,0.00046849,120]
[377199137,1754287845219,-400.0,0.00046849,120]
[377199138,1754287845229,-400.0,0.00046849,120]
[377199139,1754287845238,-1568.41,0.00046849,120]
[377199140,1754287845248,-400.0,0.00046849,120]
[377199141,1754287845258,-1134.98,0.00046849,120]
[377199142,1754287845269,-1070.8,0.00046849,120]
[377199143,1754287845278,-400.0,0.00046849,120]
[377199144,1754287845288,-400.0,0.00046849,120]
[377199145,1754287845298,-1759.87,0.00046849,120]
[377199146,1754287845307,-400.0,0.00046849,120]
[377199147,1754287845316,-400.0,0.00046849,120]
[377199148,1754287845326,-1418.92,0.00046849,120]
[377199149,1754287845335,-1397.69,0.00046849,120]
[377199150,1754287845344,-400.0,0.00046849,120]
[377199151,1754287845354,-1100.4,0.00046849,120]
[377199152,1754287845364,-400.0,0.00046849,120]
[377199153,1754287845373,-400.0,0.00046849,120]
[377199154,1754287845383,-688.74,0.00046849,120]
[377199155,1754287845392,-836.83,0.00046849,120]
[377199156,1754287845402,-400.0,0.00046849,120]
[377199157,1754287845412,-1054.97,0.00046849,120]
[377199158,1754287845421,-500.0,0.00046849,120]
[377199159,1754287845430,-1620.24,0.00046849,120]
[377199160,1754287845439,-400.0,0.00046849,120]
[377199161,1754287845449,-400.0,0.00046849,120]
[377199162,1754287845459,-400.0,0.00046849,120]
[377199163,1754287845468,-400.0,0.00046849,120]
[377199164,1754287845478,-957.27,0.00046849,120]
[377199165,1754287845488,-400.0,0.00046849,120]
[377199166,1754287845498,-402.72036305,0.00046849,120]
[377199167,1754287845507,-1210.5,0.00046849,120]
[377199168,1754287845516,-400.0,0.00046849,120]
[377199169,1754287845526,-872.83,0.00046849,120]
[377199170,1754287845535,-400.0,0.00046849,120]
[377199171,1754287845545,-635.79,0.00046849,120]
[377199172,1754287845555,-878.03,0.00046849,120]
[377199173,1754287845564,-405.93219994,0.00046849,120]
[377199174,1754287845574,-400.0,0.00046849,120]
[377199175,1754287845584,-400.0,0.00046849,120]
[377199176,1754287845593,-707.5,0.00046849,60]
[377199177,1754287845603,-400.0,0.00046849,120]
[377199178,1754287845613,-400.0,0.00046849,120]
[377199179,1754287845622,-400.0,0.00046849,120]
[377199180,1754287845632,-400.0,0.00046849,120]
[377199181,1754287845641,-728.4,0.00046849,120]
[377199182,1754287845651,-400.0,0.00046849,120]
[377199183,1754287845660,-836.94,0.00046849,120]
[377199184,1754287845670,-573.95,0.00046849,120]
[377199185,1754287845679,-486.52,0.00046849,120]
[377199186,1754287845688,-400.0,0.00046849,120]
[377199187,1754287845699,-982.98,0.00046849,120]
[377199188,1754287845711,-1529.78,0.00046849,120]
[377199189,1754287845720,-400.0,0.00046849,120]
[377199190,1754287845729,-400.0,0.00046849,120]
[377199191,1754287845738,-400.0,0.00046849,120]
[377199192,1754287845748,-400.0,0.00046849,120]
[377199193,1754287845758,-789.47,0.00046849,120]
[377199194,1754287845767,-1002.76,0.00046849,120]
[377199195,1754287845776,-400.0,0.00046849,120]
[377199196,1754287845786,-514.12,0.00046849,120]
[377199197,1754287845795,-440.14,0.00046849,30]
[377199198,1754287845804,-568.69,0.00046849,120]
[377199199,1754287845813,-527.17,0.00046849,120]
[377199200,1754287845823,-400.0,0.00046849,120]
[377199201,1754287845832,-400.0,0.00046849,120]
[377199202,1754287845841,-400.0,0.00046849,120]
[377199203,1754287845851,-670.65,0.00046849,120]
[377199204,1754287845860,-476.51,0.00046849,120]
[377199205,1754287845871,-400.0,0.00046849,120]
[377199206,1754287845880,-1771.12,0.00046849,120]
[377199207,1754287845889,-400.0,0.00046849,120]
[377199208,1754287845899,-400.0,0.00046849,120]
[377199209,1754287845909,-1465.93,0.00046849,120]
[377199210,1754287845919,-1339.47,0.00046849,120]
[377199211,1754287845928,-400.0,0.00046849,120]
[377199212,1754287845939,-400.0,0.00046849,120]
[377199213,1754287845948,-400.0,0.00046849,120]
[377199214,1754287845958,-400.0,0.00046849,120]
[377199215,1754287845968,-400.0,0.00046849,120]
[377199216,1754287845977,-400.0,0.00046849,120]
[377199217,1754287845987,-1302.25,0.00046849,120]
[377199219,1754287845997,-701.38,0.00046849,120]
[377199221,1754287846007,-1390.37,0.00046849,120]
[377199222,1754287846016,-400.0,0.00046849,120]
[377199223,1754287846026,-400.0,0.00046849,120]
[377199224,1754287846036,-1295.05,0.00046849,120]
[377199225,1754287846046,-400.0,0.00046849,120]
[377199226,1754287846055,-839.55,0.00046849,120]
[377199227,1754287846065,-438.15232947,0.00046849,120]
[377199228,1754287846074,-400.0,0.00046849,120]
[377199229,1754287846084,-384.62122344,0.00046849,120]
[377199230,1754287846093,-1237.55,0.00046849,120]
[377199231,1754287846103,-400.0,0.00046849,120]
[377199232,1754287846113,-823.49,0.00046849,120]
[377199233,1754287846125,-459.11,0.00046849,120]
[377199234,1754287846134,-713.48,0.00046849,120]
[377199235,1754287846143,-400.0,0.00046849,120]
[377199236,1754287846153,-400.0,0.00046849,120]
[377199237,1754287846163,-400.0,0.00046849,120]
[377199239,1754287846172,-400.0,0.00046849,120]
[377199241,1754287846182,-400.0,0.00046849,120]
[377199242,1754287846192,-637.24,0.00046849,120]
[377199243,1754287846201,-400.0,0.00046849,120]
[377199244,1754287846210,-400.0,0.00046849,120]
[377199245,1754287846226,-698.29,0.00046849,120]
[377199246,1754287846239,-1181.84,0.00046849,120]
[377199247,1754287846250,-400.0,0.00046849,120]
[377199248,1754287846261,-400.0,0.00046849,120]
[377199249,1754287846271,-400.0,0.00046849,120]
[377199250,1754287846281,-400.0,0.00046849,120]
[377199251,1754287846292,-400.0,0.00046849,120]
[377199252,1754287846303,-470.13,0.00046849,120]
[377199253,1754287846312,-994.44,0.00046849,120]
[377199254,1754287846322,-400.0,0.00046849,120]
[377199255,1754287846332,-400.0,0.00046849,120]
[377199256,1754287846341,-400.0,0.00046849,120]
[377199257,1754287846352,-1026.44,0.00046849,120]
[377199258,1754287846362,-400.0,0.00046849,120]
[377199259,1754287846371,-400.0,0.00046849,120]
[377199260,1754287846381,-1377.6,0.00046849,120]
[377199261,1754287846391,-976.3,0.00046849,120]
[377199262,1754287846401,-400.0,0.00046849,120]
[377199263,1754287846411,-401.99373362,0.00046849,120]
[377199264,1754287846421,-400.0,0.00046849,120]
[377199265,1754287846431,-618.67,0.00046849,120]
[377199266,1754287846769,-400.0,0.00046849,120]
[377199267,1754287846779,-650.33,0.00046849,120]
[377199268,1754287846790,-844.07,0.00046849,120]
[377199269,1754287846799,-400.0,0.00046849,120]
[377199270,1754287846809,-400.0,0.00046849,120]
[377199271,1754287846819,-1292.3,0.00046849,120]
[377199272,1754287846828,-400.0,0.00046849,120]
[377199273,1754287846837,-400.0,0.00046849,120]
[377199274,1754287846847,-400.0,0.00046849,120]
[377199275,1754287846857,-400.0,0.00046849,120]
[377199276,1754287846866,-271.80387326,0.00046849,120]
[377199277,1754287846876,-835.31,0.00046849,120]
[377199278,1754287846886,-713.74,0.00046849,120]
[377199279,1754287846896,-741.79,0.00046849,120]
[377199280,1754287846906,-400.0,0.00046849,120]
[377199281,1754287846915,-652.93,0.00046849,120]
[377199282,1754287846925,-756.87,0.00046849,120]
[377199283,1754287846935,-400.0,0.00046849,120]
[377199284,1754287846945,-400.0,0.00046849,120]
[377199285,1754287846955,-400.0,0.00046849,120]
[377199286,1754287846965,-1388.83,0.00046849,120]
[377199287,1754287846976,-580.68,0.00046849,120]
[377199288,1754287846987,-400.0,0.00046849,120]
[377199289,1754287846996,-400.0,0.00046849,120]
[377199290,1754287847007,-400.0,0.00046849,120]
[377199291,1754287847016,-400.0,0.00046849,120]
[377199292,1754287847026,-400.0,0.00046849,120]
[377199293,1754287847035,-400.0,0.00046849,120]
[377199294,1754287847045,-868.07,0.00046849,120]
[377199295,1754287847055,-400.0,0.00046849,120]
[377199296,1754287847064,-400.0,0.00046849,120]
[377199297,1754287847073,-1321.55,0.00046849,120]
[377199298,1754287847083,-400.0,0.00046849,120]
[377199299,1754287847092,-400.0,0.00046849,120]
[377199300,1754287847102,-400.0,0.00046849,120]
[377199301,1754287847111,-400.0,0.00046849,120]
[377199302,1754287847125,-561.62,0.00046849,120]
[377199303,1754287847135,-400.0,0.00046849,120]
[377199304,1754287847144,-611.91,0.00046849,120]
[377199305,1754287847155,-485.48,0.00046849,120]
[377199306,1754287847165,-400.0,0.00046849,120]
[377199307,1754287847175,-1012.69,0.00046849,120]
[377199308,1754287847184,-400.0,0.00046849,120]
[377199309,1754287847194,-400.0,0.00046849,120]
[377199310,1754287847205,-801.72,0.00046849,120]
[377199311,1754287847215,-745.86,0.00046849,120]
[377199312,1754287847225,-400.0,0.00046849,120]
[377199313,1754287847236,-724.93,0.00046849,120]
[377199314,1754287847246,-479.2,0.00046849,120]
[377199315,1754287847255,-1269.89,0.00046849,120]
[377199316,1754287847264,-400.0,0.00046849,120]
[377199317,1754287847274,-469.95,0.00046849,120]
[377199318,1754287847284,-714.42,0.00046849,120]
[377199319,1754287847294,-400.0,0.00046849,120]
[377199320,1754287847303,-701.23,0.00046849,120]
[377199321,1754287847313,-400.0,0.00046849,120]
[377199322,1754287847323,-511.11,0.00046849,120]
[377199323,1754287847332,-400.0,0.00046849,120]
[377199324,1754287847342,-400.0,0.00046849,120]
[377199325,1754287847353,-533.55,0.00046849,120]
[377199326,1754287847363,-1021.04,0.00046849,120]
[377199327,1754287847373,-402.4,0.00046849,120]
[377199328,1754287847383,-3053.03,0.00046849,120]
[377199329,1754287847392,-400.0,0.00046849,120]
[377199330,1754287847402,-400.0,0.00046849,120]
[377199331,1754287847412,-400.0,0.00046849,120]
[377199332,1754287847422,-611.42,0.00046849,120]
[377199333,1754287847431,-530.03,0.00046849,120]
[377199334,1754287847441,-2908.33,0.00046849,120]
[377199335,1754287847452,-915.6,0.00046849,120]
[377199336,1754287847462,-1106.12,0.00046849,120]
[377199337,1754287847472,-400.0,0.00046849,120]
[377199338,1754287847482,-781.73,0.00046849,120]
[377199339,1754287847492,-517.56378649,0.00046877,15]
[377199340,1754287847501,-678.61536952,0.00046878,2]
[377199341,1754287847512,-152.3267422,0.00046882,15]
[377199342,1754287847522,-457.2201239,0.00046925,2]
[377199343,1754287847532,-749.68602,0.00047,20]
[377199344,1754287847542,-17051.99507821,0.00047,5]
[377199345,1754287847552,-1830.6842708,0.00047,120]
[377199346,1754287847562,-517.56378649,0.00047005,15]
[377199347,1754287847571,-12165.8611069,0.00047011,3]
[377199348,1754287847581,-268.806,0.0004702,2]
[377199349,1754287847590,-2135.150601,0.0004702,120]
[377199350,1754287847600,-1840.623325,0.0004702,120]
[377199351,1754287847610,-2051.529086,0.0004702,120]
[377199352,1754287847620,-1124.78,0.0004702,120]
[377199353,1754287847629,-156.985334,0.0004702,120]
[377199354,1754287847639,-156.609953,0.0004702,120]
[377199355,1754287847648,-181.000593,0.0004702,120]
[377199356,1754287847659,-400.0,0.0004702,120]
[377199357,1754287847668,-6344.0,0.0004702,120]
[377199358,1754287847678,-150.0,0.00047021,2]
[377199359,1754287847688,-150.155,0.00047021,2]
[377199360,1754287847697,-812.0,0.00047021,2]
[377199361,1754287847707,-400.0,0.00047022,120]
[377199362,1754287847716,-976.16,0.00047022,120]
[377199363,1754287847725,-780.45,0.00047022,120]
[377199364,1754287847735,-824.77867988,0.00047037,2]
[377199365,1754287847744,-500.0,0.0004708,2]
[377199366,1754287847754,-500.0,0.0004708,10]
[377199367,1754287847764,-500.0,0.0004708,10]
[377199368,1754287847773,-500.0,0.0004708,10]
[377199369,1754287847783,-500.0,0.0004708,10]
[377199370,1754287847792,-500.0,0.00047083,10]
[377199371,1754287847802,-152.3267422,0.00047086,15]
[377199372,1754287847811,-1070.0,0.000471,7]
[377199373,1754287847821,-9615.92691544,0.00047103,3]
[377199375,1754287848518,-1644.97522953,0.00047103,3]
[377199376,1754287848530,-904.95896193,0.00047103,3]
[377199377,1754287848540,-12165.8611069,0.00047112,3]
[377199378,1754287848550,-400.0,0.00047112,120]
[377199379,1754287848560,-758.46,0.00047112,120]
[377199380,1754287848570,-401.2184275,0.00047112,2]
[377199381,1754287848580,-400.0,0.00047112,120]
[377199382,1754287848590,-400.0,0.00047112,2]
[377199383,1754287848601,-410.15,0.00047112,120]
[377199384,1754287848611,-230.23966474,0.00047112,120]
[377199385,1754287848621,-11055.3480087,0.00047113,3]
[377199386,1754287849725,-455.70744237,0.00046838,120]
[377199387,1754287849886,-890.53255763,0.00046838,120]
[377199388,1754287849896,-150.0,0.0004708,120]
[377199389,1754287849906,-125.17954097,0.00047112,120]
[377199394,1754288048158,166.0,0.00025,120]
[377199414,1754288289073,173.0,0.00025,120]
[377199415,1754288404368,2500.0,0.00028371,120]
[377199419,1754288508378,263.69872056,0.00029041,120]
[377199421,1754288740079,2019.6575553,9e-05,2]
[377199422,1754288765896,3309.0024447,8e-05,2]
[377199425,1754288885957,2500.0,0.00027886,120]
[377199427,1754288889619,155.2,0.00013699,2]
[377199447,1754289031709,-225.3348,0.000235,2]
[377199448,1754289031719,-526.253056,0.0002585,2]
[377199449,1754289031775,-1973.746944,0.0002585,2]
[377199450,1754289031787,-513.88033993,0.00027389,2]
[377199451,1754289031797,-342.58689329,0.00027389,2]
[377199452,1754289031808,-163.93809807,0.00027397,2]
[377199453,1754289031817,-685.227471,0.00028,60]
[377199454,1754289031833,-407.0,0.00028375,3]
[377199455,1754289031843,-638.01,0.0002937,2]
[377199456,1754289031852,-231.6277883,0.0002999,2]
[377199457,1754289031862,-4080.38369179,0.0003,2]
[377199458,1754289031871,-500.0,0.0003,2]
[377199459,1754289031881,-400.0,0.00030136,2]
[377199460,1754289031890,-859.53488276,0.00030136,2]
[377199461,1754289031902,-740.46511724,0.00030136,2]
[377199462,1754289031912,-300.0,0.00030137,120]
[377199463,1754289031922,-250.0,0.00030137,2]
[377199464,1754289031932,-2500.0,0.00030137,120]
[377199465,1754289031943,-300.0,0.00030137,120]
[377199466,1754289031953,-638.01,0.000311,2]
[377199467,1754289031963,-200.0,0.00032475,2]
[377199468,1754289031973,-638.01,0.00032831,2]
[377199469,1754289031983,-150.3,0.00033433,60]
[377199470,1754289031993,-150.3,0.00033533,60]
[377199471,1754289032003,-150.3,0.00033633,60]
[377199472,1754289032013,-150.3,0.00033733,60]
[377199473,1754289032022,-150.3,0.00033833,60]
[377199475,1754289032032,-150.3,0.00033933,60]
[377199476,1754289032042,-407.0,0.00033947,6]
[377199477,1754289032052,-150.3,0.00034033,60]
[377199478,1754289032061,-150.3,0.00034133,60]
[377199479,1754289032071,-1000.0,0.00034202,2]
[377199480,1754289032081,-150.3,0.00034233,60]
[377199481,1754289032091,-155.2,0.00034247,2]
[377199482,1754289032101,-150.3,0.00034333,60]
[377199483,1754289032111,-150.3,0.00034433,60]
[377199484,1754289032120,-200.0,0.0003444,2]
[377199485,1754289032130,-150.3,0.00034533,60]
[377199486,1754289032140,-250.0,0.00034548,2]
[377199487,1754289032150,-666.0,0.00034559,3]
[377199488,1754289032159,-167.21,0.00034559,120]
[377199490,1754289032169,-438.47,0.00034559,2]
[377199492,1754289032179,-638.01,0.00034561,2]
[377199494,1754289032188,-5000.0,0.00034594,2]
[377199496,1754289032198,-8475.53,0.00034613,2]
[377199498,1754289032208,-493.12,0.00034615,2]
[377199500,1754289032219,-150.3,0.00034633,60]
[377199502,1754289032228,-2524.83,0.00034729,2]
[377199505,1754289032238,-150.3,0.00034733,60]
[377199508,1754289032247,-150.3,0.00034833,60]
[377199511,1754289032256,-150.3,0.00034933,60]
[377199513,1754289032265,-189.536,0.00034933,40]
[377199516,1754289032275,-150.3,0.00035033,60]
[377199519,1754289032285,-503.22884168,0.00035073,5]
[377199522,1754289032294,-500.0,0.00035073,5]
[377199525,1754289032304,-500.0,0.00035073,5]
[377199528,1754289032313,-500.0,0.00035073,5]
[377199530,1754289032322,-23900.0,0.00035095,2]
[377199532,1754289032332,-198.99,0.00035107,2]
[377199534,1754289032341,-150.3,0.00035133,60]
[377199535,1754289032351,-150.3,0.00035233,60]
[377199536,1754289032360,-150.3,0.00035333,60]
[377199537,1754289032369,-150.3,0.00035433,60]
[377199538,1754289032379,-20663.51,0.00035455,2]
[377199539,1754289032389,-500.0,0.00035473,5]
[377199540,1754289032398,-503.93393116,0.00035473,5]
[377199541,1754289032408,-500.0,0.00035473,5]
[377199542,1754289032417,-500.0,0.00035473,5]
[377199543,1754289032427,-150.3,0.00035533,60]
[377199544,1754289032436,-567.75311442,0.00035621,5]
[377199545,1754289032446,-150.3,0.00035633,60]
[377199546,1754289032456,-150.3,0.00035733,60]
[377199547,1754289032466,-150.3,0.00035833,60]
[377199548,1754289032476,-150.3,0.00035933,60]
[377199549,1754289032485,-847.55337569,0.00036,120]
[377199550,1754289032496,-1131.92075802,0.00036,120]
[377199551,1754289032505,-501.2743672,0.00036021,5]
[377199552,1754289032516,-1086.24504376,0.00036021,5]
[377199553,1754289032525,-1124.28853107,0.00036021,5]
[377199554,1754289032535,-150.3,0.00036033,60]
[377199555,1754289032544,-167.65,0.00036082,2]
[377199556,1754289032554,-150.3,0.00036133,60]
[377199557,1754289032563,-500.0,0.00036144,2]
[377199558,1754289032572,-500.0,0.00036144,2]
[377199559,1754289032582,-250.0,0.00036144,21]
[377199560,1754289032591,-500.0,0.00036144,24]
[377199561,1754289032600,-750.0,0.00036144,27]
[377199562,1754289032610,-1000.0,0.00036144,30]
[377199563,1754289032619,-512.94640285,0.00036144,33]
[377199564,1754289032628,-1000.0,0.00036144,90]
[377199565,1754289032638,-836.5,0.00036144,90]
[377199566,1754289032647,-1000.0,0.00036144,120]
[377199567,1754289032656,-836.5,0.00036144,120]
[377199568,1754289032665,-151.88081315,0.00036144,60]
[377199569,1754289032675,-376.45510086,0.00036144,2]
[377199570,1754289032684,-869.56780659,0.00036144,120]
[377199571,1754289032694,-211.2,0.00036144,30]
[377199572,1754289032703,-393.87476263,0.00036144,2]
[377199573,1754289032713,-568.6390756,0.00036144,5]
[377199574,1754289032723,-999.999998,0.00036144,120]
[377199575,1754289032733,-1210.0,0.00036144,2]
[377199576,1754289032743,-277.80205179,0.00036144,120]
[377199577,1754289032752,-708.61355497,0.00036144,2]
[377199578,1754289032761,-364.90198954,0.00036144,2]
[377199579,1754289032771,-554.7596226,0.00036144,120]
[377199580,1754289032781,-163.6,0.00036144,2]
[377199581,1754289032800,-350.93439274,0.00036144,2]
[377199582,1754289032810,-546.55495269,0.00036144,120]
[377199583,1754289032820,-767.39611995,0.00036144,2]
[377199584,1754289032834,-1037.33756612,0.00036144,2]
[377199585,1754289032844,-349.15654275,0.00036144,2]
[377199586,1754289032854,-300.0,0.00036144,15]
[377199587,1754289032865,-152.46017661,0.00036144,2]
[377199588,1754289032874,-251.03491452,0.00036144,2]
[377199589,1754289032885,-165.67509502,0.00036144,2]
[377199590,1754289032894,-658.12364556,0.00036144,2]
[377199591,1754289032907,-904.8655668,0.00036144,120]
[377199592,1754289032916,-436.06822149,0.00036144,60]
[377199593,1754289032925,-245.19861349,0.00036144,2]
[377199594,1754289032935,-1049.40467806,0.00036144,2]
[377199595,1754289032946,-840.37168163,0.00036144,30]
[377199596,1754289032957,-599.33813252,0.00036144,2]
[377199597,1754289032967,-518.96722397,0.00036144,20]
[377199598,1754289032976,-398.3134533,0.00036144,60]
[377199599,1754289032985,-185.45806267,0.00036144,2]
[377199600,1754289032995,-840.7955531,0.00036144,2]
[377199601,1754289033005,-643.0,0.00036144,2]
[377199602,1754289033015,-977.63329229,0.00036144,2]
[377199603,1754289033024,-577.22012923,0.00036144,2]
[377199604,1754289033033,-155.82270069,0.00036144,2]
[377199605,1754289033044,-176.66719018,0.00036144,2]
[377199606,1754289033054,-550.0,0.00036144,2]
[377199607,1754289033063,-1015.54423863,0.00036144,2]
[377199608,1754289033073,-230.64991267,0.00036144,2]
[377199609,1754289033082,-175.04441013,0.00036144,2]
[377199610,1754289033092,-378.17436065,0.00036144,2]
[377199611,1754289033102,-1041.13413917,0.00036144,2]
[377199612,1754289033112,-1185.864346,0.00036144,2]
[377199613,1754289033122,-257.10475798,0.00036144,2]
[377199614,1754289033132,-567.35283915,0.00036144,2]
[377199615,1754289033142,-150.0,0.00036144,2]
[377199616,1754289033152,-458.07434611,0.00036144,2]
[377199617,1754289033162,-630.98714687,0.00036144,2]
[377199618,1754289033172,-216.3074615,0.00036144,2]
[377199619,1754289033182,-1074.64661302,0.00036144,2]
[377199620,1754289033193,-583.40180385,0.00036144,2]
[377199621,1754289033204,-344.63098956,0.00036144,2]
[377199622,1754289033214,-1100.0,0.00036144,2]
[377199623,1754289033224,-918.56430311,0.00036144,2]
[377199624,1754289033233,-484.95429317,0.00036144,2]
[377199625,1754289033243,-171.66457168,0.00036144,2]
[377199626,1754289033253,-177.33735836,0.00036144,120]
[377199627,1754289033264,-706.1379491,0.00036144,2]
[377199628,1754289033274,-1091.29115066,0.00036144,5]
[377199629,1754289033283,-552.1540217,0.00036144,2]
[377199630,1754289033293,-1018.91038546,0.00036144,2]
[377199631,1754289033303,-367.37436489,0.00036144,2]
[377199632,1754289033313,-237.09697146,0.00036144,60]
[377199633,1754289033322,-375.64157037,0.00036144,10]
[377199634,1754289033332,-2439.22525724,0.00036144,7]
[377199635,1754289033342,-441.33380377,0.00036144,2]
[377199636,1754289033351,-23204.80780502,0.00036144,2]
[377199637,1754289033361,-500.0,0.00036144,7]
[377199638,1754289033371,-397.99426952,0.00036144,60]
[377199639,1754289033381,-1713.3999917,0.00036144,120]
[377199640,1754289033391,-717.38957091,0.00036144,120]
[377199641,1754289033401,-220.03881026,0.00036144,7]
[377199642,1754289033411,-1126.10101485,0.00036144,2]
[377199643,1754289033421,-405.58813492,0.00036144,2]
[377199644,1754289033431,-204.39840158,0.00036144,2]
[377199645,1754289033440,-869.9719465,0.00036144,2]
[377199646,1754289033451,-284.95863891,0.00036144,2]
[377199647,1754289033462,-1120.46538614,0.00036144,2]
[377199648,1754289033472,-1043.66103796,0.00036144,2]
[377199649,1754289033483,-463.95773813,0.00036144,2]
[377199650,1754289033495,-150.0,0.00036144,2]
[377199651,1754289033506,-153.50398175,0.00036144,7]
[377199652,1754289033516,-160.0,0.00036144,2]
[377199653,1754289033527,-410.67080674,0.00036144,2]
[377199654,1754289033537,-159.12956358,0.00036144,2]
[377199655,1754289033547,-1000.0,0.00036144,2]